fUSD/lending_fUSD_20250206
["ID","MTS","AMOUNT","RATE_DAILY","PERIOD"]
[351865460,1738824674210,-150.0,0.00020172,2]
[351865461,1738824674220,-150.0,0.00020173,2]
[351865462,1738824674229,-3320.0,0.00020179,16]
[351865463,1738824674239,-150.0,0.00020182,2]
[351865464,1738824674248,-1000.0,0.00020184,2]
[351865465,1738824674258,-150.0,0.00020187,2]
[351865466,1738824674268,-150.43240909,0.00020188,2]
[351865467,1738824674278,-534.69334222,0.00020188,2]
[351865468,1738824674287,-150.0,0.0002019,2]
[351865469,1738824674296,-18530.0,0.00020192,2]
[351865470,1738824674306,-150.0,0.00020198,2]
[351865471,1738824674315,-20000.0,0.000202,4]
[351865472,1738824674324,-159.0,0.000202,2]
[351865473,1738824674334,-164.0,0.000202,2]
[351865474,1738824674343,-150.0,0.000202,2]
[351865475,1738824674352,-150.0,0.00020201,2]
[351865476,1738824674361,-150.0,0.00020203,2]
[351865477,1738824674370,-150.0,0.00020203,2]
[351865478,1738824674379,-200.0,0.00020205,2]
[351865479,1738824674389,-1000.0,0.00020207,2]
[351865480,1738824674399,-500.0,0.00020208,3]
[351865481,1738824674409,-500.0,0.00020208,3]
[351865482,1738824674418,-500.0,0.00020208,3]
[351865483,1738824674428,-500.0,0.00020208,3]
[351865484,1738824674438,-500.0,0.00020208,3]
[351865485,1738824674447,-809.75,0.00020208,3]
[351865486,1738824674457,-500.0,0.00020208,3]
[351865487,1738824674466,-506.93170027,0.00020209,3]
[351865488,1738824674475,-500.0,0.00020209,3]
[351865489,1738824674484,-500.0,0.00020209,3]
[351865490,1738824674493,-500.0,0.00020209,3]
[351865491,1738824674503,-500.0,0.00020209,3]
[351865492,1738824674512,-500.0,0.00020209,3]
[351865493,1738824674521,-500.0,0.00020209,3]
[351865494,1738824674531,-500.0,0.00020209,3]
[351865495,1738824674540,-270.7682552,0.00020209,3]
[351865496,1738824674550,-506.86668529,0.00020209,3]
[351865497,1738824674559,-500.0,0.00020209,3]
[351865498,1738824674569,-500.0,0.00020209,3]
[351865499,1738824674580,-454.37712914,0.00020209,3]
[351865500,1738824674592,-489.47191447,0.00020209,3]
[351865501,1738824674603,-581.37792142,0.00020209,3]
[351865502,1738824674613,-500.0,0.00020209,3]
[351865503,1738824674622,-500.0,0.00020209,3]
[351865504,1738824674632,-500.0,0.00020209,3]
[351865505,1738824674643,-458.96899163,0.00020209,3]
[351865506,1738824674654,-500.0,0.00020209,3]
[351865507,1738824674668,-500.0,0.00020209,3]
[351865508,1738824674679,-500.0,0.00020209,3]
[351865509,1738824674688,-500.0,0.00020209,3]
[351865510,1738824674697,-298.60981046,0.00020209,3]
[351865511,1738824674709,-500.0,0.00020209,3]
[351865512,1738824674718,-630.41337799,0.00020209,3]
[351865513,1738824674727,-500.0,0.00020209,3]
[351865514,1738824674737,-175.50907152,0.00020209,3]
[351865515,1738824674747,-279.98644267,0.00020209,3]
[351865516,1738824674756,-500.0,0.00020209,3]
[351865517,1738824674766,-518.8104907,0.00020209,3]
[351865518,1738824674775,-518.08788569,0.00020209,3]
[351865519,1738824674784,-500.0,0.00020209,3]
[351865520,1738824674793,-500.0,0.00020209,3]
[351865521,1738824674803,-634.89,0.00020209,3]
[351865522,1738824674813,-649.53525911,0.00020209,3]
[351865523,1738824674822,-500.0,0.00020209,3]
[351865524,1738824674832,-500.0,0.00020209,3]
[351865525,1738824674841,-500.0,0.00020209,3]
[351865526,1738824674851,-500.0,0.00020209,3]
[351865527,1738824674861,-500.0,0.00020209,3]
[351865528,1738824674871,-500.0,0.00020209,3]
[351865529,1738824674880,-500.0,0.00020209,3]
[351865530,1738824674890,-500.0,0.00020209,3]
[351865531,1738824674899,-500.0,0.00020209,3]
[351865532,1738824674909,-500.0,0.00020209,3]
[351865533,1738824674919,-500.0,0.00020209,3]
[351865534,1738824674928,-500.0,0.00020209,3]
[351865535,1738824674938,-418.73316781,0.00020209,3]
[351865536,1738824674947,-238.00638705,0.00020209,3]
[351865537,1738824674956,-150.0,0.00020209,2]
[351865538,1738824674966,-5352.09027087,0.0002021,30]
[351865539,1738824674975,-1000.0,0.0002021,15]
[351865540,1738824674984,-150.0,0.0002021,2]
[351865541,1738824674994,-1000.0,0.00020211,2]
[351865542,1738824675004,-500.0,0.00020213,3]
[351865543,1738824675014,-500.0,0.00020213,3]
[351865544,1738824675023,-500.0,0.00020213,3]
[351865545,1738824675032,-599.18242118,0.00020213,3]
[351865546,1738824675042,-3310.0,0.00020214,22]
[351865547,1738824675051,-209.46708133,0.00020214,3]
[351865548,1738824675060,-500.0,0.00020214,3]
[351865549,1738824675143,-500.0,0.00020214,3]
[351865550,1738824675152,-500.0,0.00020214,3]
[351865551,1738824675161,-500.0,0.00020214,3]
[351865552,1738824675171,-500.0,0.00020214,3]
[351865553,1738824675179,-633.0405112,0.00020214,3]
[351865554,1738824675189,-170.4309943,0.00020214,3]
[351865555,1738824675198,-500.0,0.00020214,3]
[351865556,1738824675207,-447.4589075,0.00020214,3]
[351865557,1738824675216,-500.0,0.00020214,3]
[351865558,1738824675225,-500.0,0.00020214,2]
[351865559,1738824675234,-590.94546841,0.00020214,3]
[351865560,1738824675243,-362.22711703,0.00020214,3]
[351865561,1738824675252,-427.4424824,0.00020214,3]
[351865562,1738824675262,-500.0,0.00020214,3]
[351865563,1738824675272,-935.78,0.00020214,3]
[351865564,1738824675281,-500.0,0.00020214,3]
[351865565,1738824675290,-500.0,0.00020214,3]
[351865566,1738824675300,-500.0,0.00020214,3]
[351865567,1738824675311,-525.01,0.00020214,3]
[351865568,1738824675320,-500.0,0.00020214,3]
[351865569,1738824675330,-500.0,0.00020214,3]
[351865570,1738824675339,-500.0,0.00020214,3]
[351865571,1738824675349,-500.0,0.00020214,3]
[351865572,1738824675358,-500.0,0.00020214,3]
[351865573,1738824675367,-500.0,0.00020214,3]
[351865574,1738824675376,-156.62497647,0.00020214,3]
[351865575,1738824675386,-4325.34,0.00020214,3]
[351865576,1738824675395,-500.0,0.00020214,3]
[351865577,1738824675404,-500.0,0.00020214,3]
[351865578,1738824675413,-500.0,0.00020214,3]
[351865579,1738824675423,-1383.97,0.00020214,3]
[351865580,1738824675432,-500.0,0.00020214,3]
[351865581,1738824675441,-500.0,0.00020214,3]
[351865582,1738824675451,-500.0,0.00020214,3]
[351865583,1738824675460,-736.14,0.00020214,3]
[351865584,1738824675470,-500.0,0.00020214,3]
[351865585,1738824675479,-610.19567092,0.00020214,3]
[351865586,1738824675488,-500.0,0.00020214,3]
[351865587,1738824675497,-500.0,0.00020214,3]
[351865588,1738824675507,-500.0,0.00020214,3]
[351865589,1738824675516,-500.0,0.00020214,3]
[351865590,1738824675526,-500.0,0.00020214,3]
[351865591,1738824675535,-500.0,0.00020214,3]
[351865592,1738824675544,-644.95458746,0.00020214,3]
[351865593,1738824675556,-500.0,0.00020214,3]
[351865594,1738824675565,-500.0,0.00020214,3]
[351865595,1738824675576,-619.51,0.00020214,3]
[351865596,1738824675585,-500.0,0.00020214,3]
[351865597,1738824675595,-171.8617606,0.00020214,3]
[351865598,1738824675605,-500.0,0.00020214,3]
[351865599,1738824675615,-522.98,0.00020214,3]
[351865600,1738824675624,-485.73185955,0.00020214,3]
[351865601,1738824675634,-500.0,0.00020214,3]
[351865602,1738824675643,-500.0,0.00020214,3]
[351865603,1738824675654,-775.78,0.00020214,3]
[351865604,1738824675668,-500.0,0.00020214,3]
[351865605,1738824675678,-547.9506363,0.00020214,3]
[351865606,1738824675688,-430.98926779,0.00020214,3]
[351865607,1738824675698,-500.0,0.00020214,3]
[351865608,1738824675709,-529.62903458,0.00020214,3]
[351865609,1738824675719,-500.0,0.00020214,3]
[351865610,1738824675728,-500.0,0.00020214,3]
[351865611,1738824675739,-500.0,0.00020214,3]
[351865612,1738824675748,-500.0,0.00020214,3]
[351865613,1738824675757,-20678.31110921,0.00020215,2]
[351865614,1738824675767,-150.0,0.00020215,2]
[351865615,1738824675778,-150.0,0.00020215,2]
[351865616,1738824675787,-150.0,0.00020215,2]
[351865617,1738824675797,-150.0,0.00020215,2]
[351865618,1738824675807,-150.0,0.00020215,2]
[351865619,1738824675816,-8516.68743871,0.00020215,2]
[351865620,1738824675826,-558.67191228,0.00020215,2]
[351865621,1738824675835,-4127.76204992,0.00020215,2]
[351865622,1738824675847,-101642.35516901,0.00020215,2]
[351865623,1738824675857,-6036.29891692,0.00020215,2]
[351865624,1738824675867,-500.0,0.00020215,3]
[351865625,1738824675879,-500.0,0.00020215,3]
[351865626,1738824675889,-500.0,0.00020215,3]
[351865627,1738824675899,-500.0,0.00020215,3]
[351865628,1738824675908,-500.0,0.00020215,3]
[351865629,1738824675918,-809.75,0.00020215,3]
[351865630,1738824675927,-500.0,0.00020215,3]
[351865631,1738824675938,-150.0,0.00020215,2]
[351865632,1738824675947,-194.57623153,0.00020216,3]
[351865633,1738824675957,-517.17,0.00020216,3]
[351865634,1738824675966,-935.78,0.00020216,3]
[351865635,1738824675976,-303.22107201,0.00020216,3]
[351865636,1738824675986,-500.0,0.00020216,3]
[351865637,1738824675996,-500.0,0.00020216,3]
[351865638,1738824676006,-525.01,0.00020216,3]
[351865639,1738824676018,-373.05860003,0.00020216,3]
[351865640,1738824676028,-483.72118962,0.00020216,3]
[351865641,1738824676039,-4325.34,0.00020216,3]
[351865642,1738824676049,-500.0,0.00020216,3]
[351865643,1738824676059,-500.0,0.00020216,3]
[351865644,1738824676068,-545.98239996,0.00020216,3]
[351865645,1738824676078,-1383.97,0.00020216,3]
[351865646,1738824676087,-500.0,0.00020216,3]
[351865647,1738824676097,-500.0,0.00020216,3]
[351865648,1738824676107,-736.14,0.00020216,3]
[351865649,1738824676116,-500.0,0.00020216,3]
[351865650,1738824676125,-619.51,0.00020216,3]
[351865651,1738824676135,-531.4008423,0.00020216,3]
[351865652,1738824676145,-775.78,0.00020216,3]
[351865653,1738824676154,-524.96444551,0.00020216,3]
[351865654,1738824676163,-284.17660095,0.00020216,3]
[351865655,1738824676172,-500.0,0.00020217,3]
[351865656,1738824676182,-500.0,0.00020217,3]
[351865657,1738824676191,-500.0,0.00020217,3]
[351865658,1738824676203,-500.0,0.00020217,3]
[351865659,1738824676212,-500.0,0.00020217,3]
[351865660,1738824676221,-500.0,0.00020217,3]
[351865661,1738824676231,-500.0,0.00020217,3]
[351865662,1738824676240,-500.0,0.00020217,3]
[351865663,1738824676250,-500.0,0.00020217,3]
[351865664,1738824676259,-500.0,0.00020217,3]
[351865665,1738824676269,-500.0,0.00020217,3]
[351865666,1738824676279,-500.0,0.00020217,3]
[351865667,1738824676288,-500.0,0.00020217,3]
[351865668,1738824676297,-500.0,0.00020217,3]
[351865669,1738824676308,-500.0,0.00020217,3]
[351865670,1738824676317,-500.0,0.00020217,3]
[351865671,1738824676327,-500.0,0.00020217,3]
[351865672,1738824676337,-208.78624804,0.00020217,3]
[351865673,1738824676346,-500.0,0.00020217,3]
[351865674,1738824676355,-374.51029744,0.00020217,3]
[351865675,1738824676436,-500.0,0.00020217,3]
[351865676,1738824676446,-170.84,0.00020217,3]
[351865677,1738824676455,-454.3,0.00020217,3]
[351865678,1738824676464,-500.0,0.00020217,3]
[351865679,1738824676474,-500.0,0.00020217,3]
[351865680,1738824676483,-500.0,0.00020217,3]
[351865681,1738824676492,-500.0,0.00020217,3]
[351865682,1738824676502,-500.0,0.00020217,3]
[351865683,1738824676511,-450.97875841,0.00020217,3]
[351865684,1738824676520,-539.24751372,0.00020217,3]
[351865685,1738824676530,-500.0,0.00020217,3]
[351865686,1738824676539,-316.34782706,0.00020217,3]
[351865687,1738824676549,-589.71598507,0.00020217,3]
[351865688,1738824676559,-219.70317024,0.00020217,3]
[351865689,1738824676569,-500.0,0.00020217,3]
[351865690,1738824676579,-500.0,0.00020217,3]
[351865691,1738824676588,-500.0,0.00020217,3]
[351865692,1738824676599,-500.0,0.00020217,3]
[351865693,1738824676610,-500.0,0.00020217,3]
[351865694,1738824676619,-629.60223712,0.00020217,3]
[351865695,1738824676628,-500.0,0.00020217,3]
[351865696,1738824676638,-500.0,0.00020217,3]
[351865697,1738824676647,-500.0,0.00020217,3]
[351865698,1738824676658,-500.0,0.00020217,3]
[351865699,1738824676673,-500.0,0.00020217,3]
[351865700,1738824676683,-500.0,0.00020217,3]
[351865701,1738824676693,-500.0,0.00020217,3]
[351865702,1738824676703,-500.0,0.00020217,3]
[351865703,1738824676712,-500.0,0.00020217,3]
[351865704,1738824676722,-522.98,0.00020217,3]
[351865705,1738824676732,-500.0,0.00020217,3]
[351865706,1738824676743,-500.0,0.00020217,3]
[351865707,1738824676753,-500.0,0.00020217,3]
[351865708,1738824676762,-500.0,0.00020217,3]
[351865709,1738824676772,-500.0,0.00020217,3]
[351865710,1738824676781,-500.0,0.00020217,3]
[351865711,1738824676791,-666.0,0.00020218,2]
[351865712,1738824676800,-666.0,0.00020218,2]
[351865713,1738824676811,-500.0,0.00020218,3]
[351865714,1738824676820,-500.0,0.00020218,3]
[351865715,1738824676830,-443.58350766,0.00020218,3]
[351865716,1738824676839,-500.0,0.00020218,3]
[351865717,1738824676850,-217.26463559,0.00020218,3]
[351865718,1738824676861,-500.0,0.00020218,3]
[351865719,1738824676871,-935.78,0.00020218,3]
[351865720,1738824676880,-935.78,0.00020218,3]
[351865721,1738824676890,-935.78,0.00020218,3]
[351865722,1738824676900,-935.78,0.00020218,3]
[351865723,1738824676910,-935.78,0.00020218,3]
[351865724,1738824676920,-935.78,0.00020218,3]
[351865725,1738824676929,-935.78,0.00020218,3]
[351865726,1738824676939,-935.78,0.00020218,3]
[351865727,1738824676948,-935.78,0.00020218,3]
[351865728,1738824676958,-935.78,0.00020218,3]
[351865729,1738824676967,-935.78,0.00020218,3]
[351865730,1738824676976,-935.78,0.00020218,3]
[351865731,1738824676986,-935.83100229,0.00020218,3]
[351865732,1738824676995,-244.07390761,0.00020218,3]
[351865733,1738824677005,-395.87707437,0.00020218,3]
[351865734,1738824677018,-525.01,0.00020218,3]
[351865735,1738824677035,-525.01,0.00020218,3]
[351865736,1738824677054,-525.01,0.00020218,3]
[351865737,1738824677074,-525.01,0.00020218,3]
[351865738,1738824677090,-525.01,0.00020218,3]
[351865739,1738824677109,-525.01,0.00020218,3]
[351865740,1738824677128,-525.01,0.00020218,3]
[351865741,1738824677147,-525.01,0.00020218,3]
[351865742,1738824677165,-525.01,0.00020218,3]
[351865743,1738824677183,-525.01,0.00020218,3]
[351865744,1738824677200,-525.01,0.00020218,3]
[351865745,1738824677216,-525.01,0.00020218,3]
[351865746,1738824677232,-525.10614642,0.00020218,3]
[351865747,1738824677248,-500.0,0.00020218,3]
[351865748,1738824677263,-500.0,0.00020218,3]
[351865749,1738824677278,-500.0,0.00020218,3]
[351865750,1738824677294,-500.0,0.00020218,3]
[351865751,1738824677311,-500.0,0.00020218,3]
[351865752,1738824677327,-440.2354427,0.00020218,3]
[351865753,1738824677343,-500.0,0.00020218,3]
[351865754,1738824677358,-190.702734,0.00020218,3]
[351865755,1738824677373,-500.0,0.00020218,3]
[351865756,1738824677389,-256.81840516,0.00020218,3]
[351865757,1738824677405,-502.34687109,0.00020218,3]
[351865758,1738824677421,-500.0,0.00020218,3]
[351865759,1738824677436,-500.0,0.00020218,3]
[351865760,1738824677451,-559.43563266,0.00020218,3]
[351865761,1738824677465,-500.0,0.00020218,3]
[351865762,1738824677480,-500.0,0.00020218,3]
[351865763,1738824677494,-546.0689173,0.00020218,3]
[351865764,1738824677508,-500.0,0.00020218,3]
[351865765,1738824677522,-500.0,0.00020218,3]
[351865766,1738824677537,-407.54844655,0.00020218,3]
[351865767,1738824677550,-809.75,0.00020218,3]
[351865768,1738824677566,-809.75,0.00020218,3]
[351865769,1738824677581,-809.75,0.00020218,3]
[351865770,1738824677596,-809.75,0.00020218,3]
[351865771,1738824677611,-809.75,0.00020218,3]
[351865772,1738824677625,-809.75,0.00020218,3]
[351865773,1738824677640,-809.75,0.00020218,3]
[351865774,1738824677655,-809.75,0.00020218,3]
[351865775,1738824677672,-809.75,0.00020218,3]
[351865776,1738824677686,-809.75,0.00020218,3]
[351865777,1738824677700,-809.75,0.00020218,3]
[351865778,1738824677714,-809.75,0.00020218,3]
[351865779,1738824677729,-809.78469679,0.00020218,3]
[351865780,1738824677744,-481.01230344,0.00020218,3]
[351865781,1738824677759,-500.0,0.00020218,3]
[351865782,1738824677775,-500.0,0.00020218,3]
[351865783,1738824677789,-312.31399547,0.00020218,3]
[351865784,1738824677806,-619.51,0.00020218,3]
[351865785,1738824677821,-619.51,0.00020218,3]
[351865786,1738824677836,-619.51,0.00020218,3]
[351865787,1738824677851,-619.51,0.00020218,3]
[351865788,1738824677866,-619.51,0.00020218,3]
[351865789,1738824677881,-619.51,0.00020218,3]
[351865790,1738824677896,-619.51,0.00020218,3]
[351865791,1738824678026,-619.51,0.00020218,3]
[351865792,1738824678039,-619.51,0.00020218,3]
[351865793,1738824678049,-619.51,0.00020218,3]
[351865794,1738824678060,-619.51,0.00020218,3]
[351865795,1738824678070,-619.51,0.00020218,3]
[351865796,1738824678079,-619.74196987,0.00020218,3]
[351865797,1738824678089,-666.0,0.00020219,2]
[351865798,1738824678100,-4325.34,0.00020219,3]
[351865799,1738824678110,-4325.34,0.00020219,3]
[351865800,1738824678120,-4325.34,0.00020219,3]
[351865801,1738824678130,-4325.34,0.00020219,3]
[351865802,1738824678140,-4325.34,0.00020219,3]
[351865803,1738824678150,-4325.34,0.00020219,3]
[351865804,1738824678161,-4325.34,0.00020219,3]
[351865805,1738824678171,-4325.34,0.00020219,3]
[351865806,1738824678180,-4325.34,0.00020219,3]
[351865807,1738824678190,-4325.34,0.00020219,3]
[351865808,1738824678200,-4325.34,0.00020219,3]
[351865809,1738824678210,-4325.49152768,0.00020219,3]
[351865810,1738824678220,-666.0,0.00020219,2]
[351865811,1738824678230,-500.0,0.00020219,3]
[351865812,1738824678240,-500.0,0.00020219,3]
[351865813,1738824678250,-500.0,0.00020219,3]
[351865814,1738824678260,-189.80249249,0.00020219,3]
[351865815,1738824678269,-1383.97,0.00020219,3]
[351865816,1738824678279,-1383.97,0.00020219,3]
[351865817,1738824678289,-1383.97,0.00020219,3]
[351865818,1738824678299,-1383.97,0.00020219,3]
[351865819,1738824678310,-1383.97,0.00020219,3]
[351865820,1738824678320,-1383.97,0.00020219,3]
[351865821,1738824678330,-1383.97,0.00020219,3]
[351865822,1738824678340,-1383.97,0.00020219,3]
[351865823,1738824678350,-1383.97,0.00020219,3]
[351865824,1738824678360,-1383.97,0.00020219,3]
[351865825,1738824678370,-1383.97,0.00020219,3]
[351865826,1738824678380,-1384.07482316,0.00020219,3]
[351865827,1738824678390,-500.0,0.00020219,3]
[351865828,1738824678399,-500.0,0.00020219,3]
[351865829,1738824678409,-500.0,0.00020219,3]
[351865830,1738824678419,-172.51913753,0.00020219,3]
[351865831,1738824678429,-736.14,0.00020219,3]
[351865832,1738824678439,-736.14,0.00020219,3]
[351865833,1738824678450,-736.14,0.00020219,3]
[351865834,1738824678460,-736.14,0.00020219,3]
[351865835,1738824678470,-736.14,0.00020219,3]
[351865836,1738824678481,-736.14,0.00020219,3]
[351865837,1738824678491,-736.14,0.00020219,3]
[351865838,1738824678502,-736.14,0.00020219,3]
[351865839,1738824678513,-736.14,0.00020219,3]
[351865840,1738824678523,-736.14,0.00020219,3]
[351865841,1738824678532,-736.14,0.00020219,3]
[351865842,1738824678543,-736.17992498,0.00020219,3]
[351865843,1738824678553,-666.0,0.00020219,2]
[351865844,1738824678566,-500.0,0.00020219,3]
[351865845,1738824678576,-225.27888845,0.00020219,3]
[351865846,1738824678586,-500.0,0.00020219,3]
[351865847,1738824678595,-330.89845899,0.00020219,3]
[351865848,1738824678605,-500.0,0.00020219,3]
[351865849,1738824678615,-500.0,0.00020219,3]
[351865850,1738824678625,-500.0,0.00020219,3]
[351865851,1738824678634,-500.0,0.00020219,3]
[351865852,1738824678644,-500.0,0.00020219,3]
[351865853,1738824678654,-500.0,0.00020219,3]
[351865854,1738824678666,-506.23909033,0.00020219,3]
[351865855,1738824678676,-500.0,0.00020219,3]
[351865856,1738824678686,-500.0,0.00020219,3]
[351865857,1738824678696,-500.0,0.00020219,3]
[351865858,1738824678707,-500.0,0.00020219,3]
[351865859,1738824678717,-500.0,0.00020219,3]
[351865860,1738824678727,-500.0,0.00020219,3]
[351865861,1738824678738,-500.0,0.00020219,3]
[351865862,1738824678750,-500.0,0.00020219,3]
[351865863,1738824678761,-500.0,0.00020219,3]
[351865864,1738824678771,-500.0,0.00020219,3]
[351865865,1738824678781,-383.36826409,0.00020219,3]
[351865866,1738824678790,-500.0,0.00020219,3]
[351865867,1738824678800,-500.0,0.00020219,3]
[351865868,1738824678811,-500.0,0.00020219,3]
[351865869,1738824678822,-554.20359695,0.00020219,3]
[351865870,1738824678832,-500.0,0.00020219,3]
[351865871,1738824678842,-500.0,0.00020219,3]
[351865872,1738824678853,-500.0,0.00020219,3]
[351865873,1738824678864,-500.0,0.00020219,3]
[351865874,1738824678874,-486.15229709,0.00020219,3]
[351865875,1738824678884,-500.0,0.00020219,3]
[351865876,1738824678894,-500.0,0.00020219,3]
[351865877,1738824678905,-500.0,0.00020219,3]
[351865878,1738824678915,-500.0,0.00020219,3]
[351865879,1738824678926,-666.0,0.00020219,2]
[351865880,1738824678936,-194.59690202,0.00020219,3]
[351865881,1738824678946,-468.92263873,0.00020219,3]
[351865882,1738824678956,-159.03534523,0.00020219,3]
[351865883,1738824678967,-522.98,0.00020219,3]
[351865884,1738824678977,-522.98,0.00020219,3]
[351865885,1738824678987,-522.98,0.00020219,3]
[351865886,1738824678996,-522.98,0.00020219,3]
[351865887,1738824679006,-522.98,0.00020219,3]
[351865888,1738824679016,-522.98,0.00020219,3]
[351865889,1738824679027,-522.98,0.00020219,3]
[351865890,1738824679037,-522.98,0.00020219,3]
[351865891,1738824679048,-522.98,0.00020219,3]
[351865892,1738824679059,-522.98,0.00020219,3]
[351865893,1738824679069,-522.9837875,0.00020219,3]
[351865894,1738824679078,-500.0,0.00020219,3]
[351865895,1738824679088,-596.73021829,0.00020219,3]
[351865896,1738824679097,-500.0,0.00020219,3]
[351865897,1738824679107,-500.0,0.00020219,3]
[351865898,1738824679116,-600.42972173,0.00020219,3]
[351865899,1738824679126,-775.78,0.00020219,3]
[351865900,1738824679136,-775.78,0.00020219,3]
[351865901,1738824679146,-775.78,0.00020219,3]
[351865902,1738824679156,-775.78,0.00020219,3]
[351865903,1738824679166,-775.78,0.00020219,3]
[351865904,1738824679177,-775.78,0.00020219,3]
[351865905,1738824679187,-775.78,0.00020219,3]
[351865906,1738824679197,-775.78,0.00020219,3]
[351865907,1738824679207,-775.78,0.00020219,3]
[351865908,1738824679217,-775.78,0.00020219,3]
[351865909,1738824679227,-775.78,0.00020219,3]
[351865910,1738824679237,-775.87838115,0.00020219,3]
[351865911,1738824679246,-500.0,0.00020219,3]
[351865912,1738824679255,-500.0,0.00020219,3]
[351865913,1738824679265,-265.36169721,0.00020219,3]
[351865914,1738824679275,-500.0,0.00020219,3]
[351865915,1738824679285,-500.0,0.00020219,3]
[351865916,1738824679295,-500.0,0.00020219,3]
[351865917,1738824679305,-500.0,0.00020219,3]
[351865918,1738824679315,-500.0,0.00020219,3]
[351865919,1738824679325,-500.0,0.00020219,3]
[351865920,1738824679335,-492.74269224,0.00020219,3]
[351865921,1738824679344,-500.0,0.00020219,3]
[351865922,1738824679354,-500.0,0.00020219,3]
[351865923,1738824679363,-398.28252457,0.00020219,3]
[351865924,1738824679374,-500.0,0.00020219,3]
[351865925,1738824679383,-500.0,0.00020219,3]
[351865926,1738824679393,-500.0,0.00020219,3]
[351865927,1738824679403,-311.51403371,0.00020219,3]
[351865928,1738824679414,-156.01637741,0.0002022,2]
[351865929,1738824679424,-56151.08003307,0.0002022,2]
[351865930,1738824679434,-171.20987586,0.0002022,91]
[351865931,1738824679514,-3836915.55202618,0.0002022,30]
[351865932,1738824680009,-7620.0,0.0002022,30]
[351865933,1738824680022,-24673.9848,0.0002022,30]
[351865934,1738824680033,-1454.40430247,0.0002022,30]
[351865935,1738824680190,-500.52654701,0.0002,3]
[351865936,1738824680200,-500.0,0.0002,3]
[351865937,1738824680210,-500.0,0.0002,3]
[351865938,1738824680220,-500.0,0.0002,3]
[351865939,1738824680230,-511.63754407,0.0002,3]
[351865940,1738824680239,-500.0,0.0002,3]
[351865941,1738824680249,-134.94983709,0.0002,3]
[351865942,1738824680261,-365.05016291,0.0002,3]
[351865943,1738824680271,-500.0,0.0002,3]
[351865944,1738824680281,-599.69,0.0002,3]
[351865945,1738824680290,-258.15233606,0.0002,3]
[351865946,1738824680300,-500.0,0.0002,3]
[351865947,1738824680311,-500.0,0.0002,3]
[351865948,1738824680321,-500.0,0.0002,3]
[351865949,1738824680330,-500.0,0.0002,3]
[351865950,1738824680340,-500.0,0.0002,3]
[351865951,1738824680349,-162.55156928,0.0002,3]
[351865952,1738824680361,-337.44843072,0.0002,3]
[351865953,1738824680370,-500.0,0.0002,3]
[351865954,1738824680380,-500.0,0.0002,3]
[351865955,1738824680389,-500.0,0.0002,3]
[351865956,1738824680399,-225.37772863,0.00020098,3]
[351865957,1738824680408,-500.0,0.00020098,3]
[351865958,1738824680417,-500.0,0.00020121,3]
[351865959,1738824680427,-500.0,0.00020214,3]